bitfinex/quotes_ETHUSD_20220310
["timestamp","ask_amount","ask_price","bid_price","bid_amount"]
[1646881565201,0.09389954,2674.6,2674.5,1.78579778]
[1646881566008,0.09389954,2674.6,2674.5,0.445]
[1646881566406,0.09389954,2674.6,2674.0,0.445]
[1646881566606,0.09389954,2674.6,2674.1,0.07865084]
[1646881567048,0.09389954,2674.6,2674.1,4.76228731]
[1646881567250,0.09389954,2674.6,2674.2,0.52312338]
[1646881567251,0.00304513,2674.5,2674.2,0.52312338]
[1646881568048,0.09389954,2674.6,2674.2,3.945]
[1646881568247,0.00304518,2674.5,2674.3,0.08903584]
[1646881568548,0.18596697,2675.2,2675.0,0.40536271]
[1646881568549,0.01074308,2675.2,2675.0,0.40536271]
[1646881570358,1.87127,2674.9,2673.7,0.08998484]
[1646881570614,0.93568,2674.3,2673.7,0.08998484]
[1646881571016,0.93568,2674.3,2673.3,0.07672336]
[1646881571412,0.93568,2674.3,2672.9,0.07248848]
[1646881571812,0.04480788,2674.2,2672.9,0.07248848]
[1646881572016,1.15861848,2673.9,2672.9,0.07248848]
[1646881572311,0.04480788,2674.2,2672.9,0.07248848]
[1646881572512,0.04525205,2674.4,2672.9,0.07248848]
[1646881572712,0.04525205,2674.4,2672.9,1.94388058]
[1646881572912,0.04525205,2674.4,2673.0,3.58277834]
[1646881573111,0.92743929,2674.4,2673.3,1.17844217]
[1646881573314,1.91655205,2674.4,2673.3,4.67844217]
[1646881573514,0.01074308,2674.6,2673.4,0.06877634]
[1646881573515,0.0458827,2674.3,2673.4,0.06877634]
[1646881573713,0.04922802,2674.5,2673.4,0.06877634]
[1646881573914,0.01074308,2674.6,2673.4,3.56877634]
[1646881574117,0.01074308,2674.6,2673.5,0.53362584]
[1646881574350,0.01074308,2674.6,2674.0,1.03051428]
[1646881574551,0.01074308,2674.6,2674.0,1.11828613]
[1646881575249,0.01074308,2674.6,2673.8,0.08854411]
[1646881575854,1.87122,2674.5,2673.5,0.9356028]
[1646881576054,1.87122,2674.5,2673.6,0.0890697]
[1646881576264,0.95034052,2674.4,2673.6,0.0890697]
[1646881576655,0.95034052,2674.4,2672.9,0.3751]
[1646881576656,0.04450679,2674.3,2672.9,0.3751]
[1646881576855,0.04450679,2674.3,2673.0,0.06903088]
[1646881577057,0.04450679,2674.3,2673.0,1.00481128]
[1646881577256,0.04450679,2674.3,2673.2,1.94227005]
[1646881577455,0.04450679,2674.3,2673.5,0.94117341]
[1646881578306,0.04450679,2674.3,2673.4,0.07568408]
[1646881578307,0.04450679,2674.3,2673.7,0.9355312]
[1646881578507,0.04450679,2674.3,2673.4,0.07568408]
[1646881579107,0.04450679,2674.3,2673.1,0.07711658]
[1646881579909,0.98026679,2674.3,2673.1,0.07711658]
[1646881580112,0.0420527,2674.3,2673.2,2.8299029]
[1646881580309,0.0420527,2674.3,2673.9,0.07396093]
[1646881581312,0.01074308,2674.6,2673.9,0.07396093]
[1646881581515,0.98465241,2674.4,2673.9,0.07396093]
[1646881582151,0.01074308,2674.6,2673.9,0.07396093]
[1646881582359,1.20657473,2674.6,2673.9,0.07396093]
[1646881582548,0.05631575,2674.6,2673.9,0.07396093]
[1646881583951,0.05631575,2674.6,2673.6,3.34469471]
[1646881584350,0.05631575,2674.6,2673.8,0.935587]
[1646881585252,0.05631575,2674.6,2674.1,0.073592]
[1646881585502,0.93563,2674.5,2674.1,9.2e-05]
[1646881585704,0.05176927,2674.4,2674.1,9.2e-05]
[1646881585903,0.05470817,2674.2,2674.1,9.2e-05]
[1646881588508,2.19275469,2674.4,2674.1,9.2e-05]
[1646881589107,1.92111608,2674.4,2674.1,9.2e-05]
[1646881589348,0.98276978,2674.3,2674.1,9.2e-05]
[1646881589952,0.04703978,2674.3,2674.1,9.2e-05]
[1646881590151,0.04703978,2674.3,2674.2,0.01433588]
[1646881590152,0.0366485,2674.3,2674.2,0.01433588]
[1646881592752,0.08698279,2674.3,2674.2,0.01433588]
[1646881594704,0.9693717,2674.0,2673.3,1.62659908]
[1646881594907,0.04956038,2673.9,2673.4,1.5512377]
[1646881596108,0.04956038,2673.9,2673.5,1.5512377]
[1646881596308,0.04956038,2673.9,2673.6,1.5512377]
[1646881596509,0.04956038,2673.9,2673.7,1.5512377]
[1646881596758,0.04956038,2673.9,2673.8,1.5512377]
[1646881597147,0.04956038,2673.9,2673.2,2.24210148]
[1646881597348,0.04956038,2673.9,2673.3,1.5726467]
[1646881597548,0.04956038,2673.9,2673.4,1.5512377]
[1646881597753,1.23583,2674.1,2673.4,1.5512377]
[1646881597754,0.04322134,2673.7,2673.4,1.5512377]
[1646881598149,0.04322134,2673.7,2673.5,1.5512377]
[1646881598352,0.04322134,2673.7,2672.8,0.69086378]
[1646881598552,0.04322134,2673.7,2672.7,2.26331153]
[1646881598751,0.04322134,2673.7,2672.8,1.55144675]
[1646881598950,0.93605,2673.3,2672.8,1.55144675]
[1646881599152,0.04783973,2673.2,2672.8,1.55144675]
[1646881600357,0.93629,2673.0,2672.9,1.55144675]
[1646881600604,0.93629,2673.0,2672.4,0.69086378]
[1646881600805,0.98999684,2672.9,2672.4,0.69086378]
[1646881601006,0.98999684,2672.9,2672.5,0.69086378]
[1646881601204,0.98999684,2672.9,2672.6,1.55144675]
[1646881601205,0.0532654,2672.8,2672.6,1.55144675]
[1646881601406,0.0532654,2672.8,2672.7,1.55144675]
[1646881601805,0.0532654,2672.8,2672.3,1.55144675]
[1646881602007,0.0532654,2672.8,2672.4,1.55144675]
[1646881602206,1.9259854,2672.8,2672.2,0.021001]
[1646881602410,1.48904296,2673.8,2672.3,1.55144675]
[1646881602412,0.98643548,2673.2,2672.3,1.55144675]
[1646881602606,1.48904296,2673.8,2672.9,0.023801]
[1646881602807,0.05273691,2673.2,2673.0,1.55144675]
[1646881603207,0.3,2673.4,2673.0,1.55144675]
[1646881603208,0.34642514,2673.4,2673.0,1.55144675]
[1646881604266,0.34642514,2673.4,2672.9,0.023801]
[1646881606255,0.04642514,2673.4,2672.9,0.023801]
[1646881607757,1.18238514,2673.5,2672.9,0.023801]
[1646881608401,2.87197,2673.7,2673.2,0.022447]
[1646881608603,1.0,2673.7,2673.2,0.022447]
[1646881608802,1.6347026,2673.8,2673.2,0.022447]
[1646881609201,1.23586,2673.8,2673.2,0.022447]
[1646881609501,2.29914103,2673.8,2673.2,0.022447]
[1646881609903,1.87197,2673.7,2673.2,0.022447]
[1646881610104,0.05919965,2673.3,2673.2,0.022447]
[1646881611951,0.05919965,2673.3,2672.9,0.9596721]
[1646881612164,0.05919965,2673.3,2673.2,0.029168]
[1646881613052,0.05919965,2673.3,2673.2,0.10166319]
[1646881613854,0.05919965,2673.3,2672.9,0.023801]
[1646881614053,0.05919965,2673.3,2673.1,0.022358]
[1646881615699,0.05919965,2673.3,2672.9,0.10369701]
[1646881616701,0.05919965,2673.3,2673.1,0.022324]
[1646881617600,0.05919965,2673.3,2672.9,0.10369701]
[1646881617904,0.99522965,2673.3,2672.9,0.10369701]
[1646881618102,0.99522965,2673.3,2672.9,0.023801]
[1646881618902,0.99522965,2673.3,2672.7,0.023114]
[1646881618903,1.16504422,2673.2,2672.7,0.023114]
[1646881619104,1.16504422,2673.2,2672.8,0.021997]
[1646881619580,1.19485437,2673.2,2672.8,0.021997]
[1646881623402,0.02981015,2673.2,2672.8,0.021997]
[1646881623605,0.02981015,2673.2,2673.0,0.08597964]
[1646881624602,0.02981015,2673.2,2672.8,0.021997]
[1646881626609,0.02981015,2673.2,2672.8,0.9579398]
[1646881628555,0.02981015,2673.2,2672.8,0.95642064]
[1646881629257,0.02981015,2673.2,2672.7,0.11185575]
[1646881629458,3.6,2673.1,2672.1,7.2405]
[1646881629659,3.6,2673.1,2671.9,7.9647]
[1646881629660,3.9,2673.1,2671.9,7.9647]
[1646881629859,4.95075354,2673.1,2672.0,1.55158505]
[1646881630059,0.0542663,2672.9,2672.1,0.08932988]
[1646881630360,0.92056146,2672.4,2671.7,0.0871114]
[1646881630605,0.93636,2672.3,2671.8,1.55166139]
[1646881630907,0.93636,2672.3,2671.9,0.07847471]
[1646881631409,1.0,2672.5,2671.9,0.07847471]
[1646881631612,0.93625,2672.6,2671.8,3.5]
[1646881631805,0.93625,2672.6,2672.0,0.07536649]
[1646881633110,1.94350326,2672.8,2672.0,0.07536649]
[1646881633408,2.24350326,2672.8,2672.0,0.07536649]
[1646881634758,0.03665098,2672.2,2672.0,0.07536649]
[1646881637559,0.03665098,2672.2,2672.1,1.63758236]
[1646881637761,0.03665098,2672.2,2672.1,5.88258236]
[1646881637762,5.098e-05,2672.2,2672.1,5.88258236]
[1646881638020,0.03606721,2672.3,2672.1,5.88258236]
[1646881638021,0.03606721,2672.3,2672.2,0.1990857]
[1646881638212,6.721e-05,2672.3,2672.2,6.07077051]
[1646881638413,3.00209,2673.7,2672.6,2.8075637]
[1646881638610,2.80782,2673.7,2672.8,0.07544938]
[1646881639412,3.93306088,2673.7,2672.8,0.07544938]
[1646881639811,0.93596,2673.4,2672.8,1.01133848]
[1646881640011,0.93596,2673.4,2673.0,0.0845825]
[1646881640818,1.87198,2673.4,2673.0,0.0845825]
[1646881641012,1.87217,2673.3,2672.5,0.08557896]
[1646881641861,0.93614,2673.0,2672.5,0.08557896]
[1646881642255,0.93614,2673.0,2672.3,0.08783499]
[1646881642858,1.87231,2673.0,2672.3,1.02391749]
[1646881643058,1.87231,2673.0,2672.4,0.07243322]
[1646881643660,0.88067675,2672.6,2672.2,0.19053995]
[1646881643865,0.93632,2672.5,2672.2,0.10990195]
[1646881644760,1.23632,2672.5,2672.2,0.10990195]
[1646881644966,1.23632,2672.5,2670.9,2.32724093]
[1646881644967,7.67951521,2672.3,2670.9,2.32724093]
[1646881645164,7.67951521,2672.3,2671.0,1.55197503]
[1646881645165,0.93673,2671.9,2671.0,1.55197503]
[1646881645361,0.05071462,2671.8,2671.1,1.55197503]
[1646881645614,0.05071462,2671.8,2670.7,0.08657194]
[1646881645918,0.93684,2671.2,2670.8,1.55209934]
[1646881646114,0.93683,2671.1,2670.8,1.55209934]
[1646881648213,0.93683,2671.1,2670.4,0.08929388]
[1646881648414,5.23774,2671.2,2670.5,1.55221242]
[1646881648415,0.93696,2670.8,2670.5,1.55221242]
[1646881648615,0.93696,2670.8,2670.2,0.07025565]
[1646881648813,1.18571061,2670.7,2670.3,1.55225073]
[1646881649014,1.0,2671.3,2670.4,0.07124096]
[1646881649253,0.05196853,2671.6,2670.6,0.07317046]
[1646881649452,0.05196853,2671.6,2670.7,1.55225073]
[1646881649453,1.87356,2671.3,2670.7,1.55225073]
[1646881649657,2.8103,2671.3,2670.8,0.07402795]
[1646881649853,3.8103,2671.3,2670.3,0.07637471]
[1646881650053,1.22767908,2671.0,2670.5,0.07523878]
[1646881650455,2.16447908,2671.0,2670.1,0.08272649]
[1646881650656,2.16447908,2671.0,2670.2,1.55234466]
[1646881650856,2.16447908,2671.0,2670.3,0.0763861]
[1646881651157,2.16447908,2671.0,2669.9,3.4866]
[1646881651356,2.16447908,2671.0,2670.0,1.63495326]
[1646881651558,2.46447908,2671.0,2670.1,1.62214201]
[1646881651759,0.960381,2670.8,2669.9,0.07084361]
[1646881651958,1.19604353,2670.1,2669.4,3.56914488]
[1646881652160,1.19604353,2670.1,2669.5,1.63056334]
[1646881652161,3.07060353,2670.1,2669.5,1.63056334]
[1646881652356,4.07060353,2670.1,2669.6,1.5526607]
[1646881653412,0.93727,2669.9,2669.6,1.5526607]
[1646881655019,0.93727,2669.9,2669.2,0.08974364]
[1646881655217,0.93727,2669.9,2669.4,0.07771356]
[1646881655417,0.93727,2669.9,2669.2,0.00166918]
[1646881655618,0.93727,2669.9,2669.1,1.64079391]
[1646881655819,0.93727,2669.9,2669.3,0.08460098]
[1646881656219,0.93727,2669.9,2669.1,0.07776007]
[1646881656419,0.93727,2669.9,2669.2,1.55278035]
[1646881656619,0.93727,2669.9,2669.3,0.07824895]
[1646881656859,0.93727,2669.9,2669.4,1.552758]
[1646881657060,0.93727,2669.9,2669.1,0.07817396]
[1646881657259,0.93727,2669.9,2669.2,1.55276402]
[1646881657463,0.93727,2669.9,2669.3,0.07546982]
[1646881657860,3.81181,2670.0,2669.9,0.71903802]
[1646881658964,3.7,2669.7,2668.8,0.09536547]
[1646881659163,0.024697,2669.3,2668.8,0.00626033]
[1646881659363,0.024697,2669.3,2667.8,4.5622]
[1646881659364,0.469697,2669.3,2667.8,4.5622]
[1646881659663,0.469697,2669.3,2668.0,0.07428228]
[1646881659664,3.54536767,2669.2,2668.0,0.07428228]
[1646881659864,0.025087,2668.9,2668.1,1.50332308]
[1646881660177,0.025087,2668.9,2667.6,2.4821]
[1646881660178,4.20947664,2668.3,2667.5,0.07555599]
[1646881660365,4.20947664,2668.3,2666.9,0.69086378]
[1646881660366,0.48933107,2668.2,2666.9,0.69086378]
[1646881660619,0.024327,2668.1,2667.0,0.08498889]
[1646881660820,0.469327,2668.1,2667.0,0.08498889]
[1646881661021,0.962387,2668.1,2668.0,0.00959795]
[1646881661220,1.87611,2668.2,2668.0,0.00959795]
[1646881661221,1.0,2668.2,2668.0,0.00959795]
[1646881661419,0.93777,2668.4,2668.0,0.00959795]
[1646881661820,0.93777,2668.4,2667.4,0.0759792]
[1646881662020,0.3,2668.3,2667.6,0.0095994]
[1646881662220,0.9379,2668.0,2667.6,0.0095994]
[1646881662824,2.01931147,2668.0,2667.3,0.3751]
[1646881663221,0.93789,2667.9,2667.4,3.5]
[1646881663423,1.0,2668.1,2667.5,0.08706319]
[1646881663721,0.93781,2668.4,2667.5,0.08706319]
[1646881663921,2.87552,2668.5,2667.5,0.08706319]
[1646881664121,3.3039,2669.1,2667.5,0.08706319]
[1646881664122,2.16,2669.0,2667.5,0.08706319]
[1646881664359,1.05299876,2668.7,2667.7,0.06980335]
[1646881664563,0.93767,2668.6,2667.7,3.8751]
[1646881664763,0.93767,2668.6,2667.6,0.37637748]
[1646881664964,0.93767,2668.6,2667.6,0.07637748]
[1646881664965,0.958763,2668.6,2667.6,0.07637748]
[1646881665168,0.958763,2668.6,2667.4,0.07883751]
[1646881665367,0.321093,2668.6,2667.4,0.07883751]
[1646881665567,1.22489272,2668.1,2667.6,0.00854346]
[1646881665965,0.93785,2668.0,2667.6,0.00854346]
[1646881666168,1.22489272,2668.1,2668.0,1.54787941]
[1646881666367,1.22489272,2668.1,2668.0,1.63669272]
[1646881666568,1.22489272,2668.1,2668.0,1.54787941]
[1646881667466,2.16277272,2668.1,2668.0,1.54787941]
[1646881667666,3.7,2668.0,2667.6,0.07186351]
[1646881667876,3.7,2668.0,2667.5,0.00854363]
[1646881667877,0.93805,2667.8,2667.5,0.00854363]
[1646881668128,0.3,2667.7,2667.5,0.00854363]
[1646881668732,1.08598972,2667.6,2667.5,0.00854363]
[1646881668934,1.08598972,2667.6,2666.8,0.08387371]
[1646881669232,0.93818,2667.4,2667.1,0.02005732]
[1646881670034,0.93818,2667.4,2666.8,0.08387371]
[1646881670439,0.93818,2667.4,2667.0,0.01139673]
[1646881670835,0.93794,2667.7,2667.0,0.01139673]
[1646881671232,0.93794,2667.7,2667.0,0.08722175]
[1646881671436,0.93794,2667.7,2667.0,1.01371392]
[1646881671638,0.93794,2667.7,2667.1,3.5113963]
[1646881671868,1.20785539,2668.4,2667.2,0.44477124]
[1646881671869,1.0,2668.3,2667.2,0.44477124]
[1646881672070,0.93782,2668.1,2667.4,0.3751]
[1646881672270,0.93782,2668.1,2667.4,0.46039318]
[1646881672467,0.93782,2668.4,2667.5,3.5]
[1646881672872,0.95945655,2668.3,2667.5,3.5]
[1646881673076,0.93771,2668.4,2667.7,0.3751]
[1646881673273,0.93771,2668.4,2667.8,3.8751]
[1646881673471,0.93771,2668.4,2667.9,0.08864742]
[1646881673674,3.056281,2669.0,2667.9,0.08864742]
[1646881673675,1.87525,2668.9,2667.9,0.08864742]
[1646881674071,0.94966686,2668.5,2667.9,0.08864742]
[1646881674875,0.94966686,2668.5,2667.9,3.5]
[1646881675075,0.94966686,2668.5,2668.0,0.08804505]
[1646881676117,1.87534,2668.6,2668.0,0.08804505]
[1646881676419,3.056281,2669.0,2668.0,0.08804505]
[1646881676420,0.93753,2669.0,2668.0,0.08804505]
[1646881676619,0.021001,2669.5,2668.1,0.3751]
[1646881676818,0.021001,2669.5,2668.3,0.0853617]
[1646881677018,0.021001,2669.5,2668.5,0.75341885]
[1646881677224,1.5313,2670.1,2668.7,0.3751]
[1646881677225,2.93679778,2669.9,2668.7,0.3751]
[1646881677422,0.021001,2670.0,2668.9,0.937129]
[1646881677618,1.1699,2670.4,2669.1,0.07436231]
[1646881677819,3.57425381,2670.6,2670.4,0.48654551]
[1646881678017,0.07425381,2670.6,2670.4,0.48654551]
[1646881678418,0.89640474,2670.5,2670.4,0.48654551]
[1646881678619,2.81117,2670.5,2670.4,0.48654551]
[1646881679482,3.81117,2670.5,2670.4,0.48654551]
[1646881679678,2.81117,2670.5,2670.4,0.48654551]
[1646881679878,3.81117,2670.5,2670.4,0.48654551]
[1646881680281,2.81117,2670.5,2670.4,0.48654551]
[1646881680795,0.93726,2670.1,2669.4,0.08414841]
[1646881680984,0.93726,2670.1,2668.9,9.47153259]
[1646881680985,0.93724,2670.0,2668.9,7.0086197]
[1646881681184,0.93724,2670.0,2669.1,0.09052154]
[1646881681384,0.93724,2670.0,2669.2,0.0020197]
[1646881681785,1.13162977,2669.8,2669.2,0.0020197]
[1646881681983,2.06887977,2669.8,2669.2,0.0020197]
[1646881682184,2.06887977,2669.8,2669.1,0.09052154]
[1646881682384,2.06887977,2669.8,2669.1,0.09254133]
[1646881682786,1.896759,2670.2,2669.2,0.9371335]
[1646881683012,0.022289,2670.2,2669.3,0.08763828]
[1646881683211,0.93713,2670.1,2669.3,0.08763828]
[1646881683912,0.06684487,2670.0,2669.3,0.08763828]
[1646881685017,0.06684487,2670.0,2669.4,1.55281018]
[1646881685220,0.06684487,2670.0,2669.5,0.0786062]
[1646881685418,0.06684487,2670.0,2669.2,0.9371335]
[1646881685617,0.06684487,2670.0,2669.3,1.55279875]
[1646881685821,0.06684487,2670.0,2669.4,0.09040099]
[1646881686124,0.06684487,2670.0,2669.6,0.088955]
[1646881686320,0.06684487,2670.0,2669.7,1.55279875]
[1646881686520,0.06684487,2670.0,2669.8,0.07723215]
[1646881686767,0.06684487,2670.0,2669.9,1.55279875]
[1646881686966,0.06684487,2670.0,2669.9,1.5525665]
[1646881688370,0.06684487,2670.0,2669.9,1.8525665]
[1646881689670,0.957851,2670.9,2669.9,2.77679171]
[1646881689868,0.957851,2670.9,2670.0,1.5525665]
[1646881690524,0.957851,2670.9,2670.1,0.9368091]
[1646881690717,0.957851,2670.9,2670.2,1.5525665]
[1646881690718,0.021001,2670.9,2670.2,1.5525665]
[1646881691421,0.021001,2670.9,2670.0,1.8734744]
[1646881691422,0.021001,2670.9,2670.3,2.4892775]
[1646881691618,0.021001,2670.9,2670.4,1.5525665]
[1646881691817,0.957741,2671.2,2670.4,1.5525665]
[1646881692019,0.021001,2671.2,2670.4,1.5525665]
[1646881693018,0.021001,2671.2,2670.5,0.80655045]
[1646881693220,7.32,2671.7,2670.5,0.80655045]
[1646881693221,0.021001,2671.6,2670.7,0.9365731]
[1646881693420,7.341001,2672.3,2670.8,16.25464191]
[1646881693620,0.021001,2672.3,2670.9,13.3776665]
[1646881693819,0.021001,2672.3,2671.0,1.64475605]
[1646881694026,0.021001,2672.3,2671.1,13.3776665]
[1646881694271,0.021001,2672.3,2671.5,0.9361793]
[1646881696078,0.021001,2672.3,2671.5,1.2361793]
[1646881698614,0.021001,2672.3,2671.7,0.07442888]
[1646881698813,0.021001,2672.3,2671.9,0.08067536]
[1646881700020,6.37233,2673.1,2671.9,0.08067536]
[1646881700021,0.021001,2673.0,2672.3,0.063003]
[1646881700219,0.021001,2673.0,2672.6,0.08826991]
[1646881700419,7.341001,2673.3,2672.6,0.08826991]
[1646881700827,0.022863,2673.0,2672.3,0.063003]
[1646881701023,0.9362,2672.8,2672.3,0.063003]
[1646881701221,0.9362,2672.8,2672.3,0.06218265]
[1646881701428,0.023217,2672.4,2672.3,0.06218265]
[1646881702162,0.04373851,2673.0,2672.3,0.06218265]
[1646881702163,0.021001,2673.0,2672.3,0.06218265]
[1646881702964,1.16902477,2672.8,2672.3,0.06218265]
[1646881703163,0.021746,2672.7,2672.3,0.06218265]
[1646881704167,0.022459,2672.5,2672.3,0.06218265]
[1646881704768,1.895189,2672.5,2672.3,0.06218265]
[1646881704970,0.49336186,2672.4,2672.3,0.06218265]
[1646881705171,0.49336186,2672.4,2671.1,0.07128601]
[1646881705172,0.93663,2672.1,2671.1,0.07128601]
[1646881705372,0.024499,2671.4,2670.2,9.6855]
[1646881705621,0.024499,2671.4,2670.3,0.08754242]
[1646881705622,0.024054,2670.8,2670.3,0.08754242]
[1646881705822,1.02503248,2670.7,2670.3,0.08754242]
[1646881706222,0.022479,2670.4,2669.3,3.5]
[1646881706420,1.02503248,2670.7,2669.5,0.08517571]
[1646881706619,0.023891,2670.2,2669.5,0.08517571]
[1646881707220,1.21704044,2669.9,2669.5,0.08517571]
[1646881707421,1.21704044,2669.9,2669.1,3.5]
[1646881707422,2.15433044,2669.9,2669.1,3.5]
[1646881707624,0.0235,2669.4,2669.2,0.08920791]
[1646881707821,0.0235,2669.4,2669.2,0.00165531]
[1646881708620,1.13002136,2669.3,2668.3,0.07374369]
[1646881708822,2.06747136,2669.3,2668.8,0.00165557]
[1646881709021,2.06747136,2669.3,2668.8,0.00786395]
[1646881709022,0.93745,2669.3,2668.8,0.00786395]
[1646881709266,0.0235,2669.4,2668.8,0.00786395]
[1646881709467,0.0235,2669.4,2668.8,0.09822415]
[1646881709672,0.0235,2669.4,2668.8,0.00786395]
[1646881709870,0.0235,2669.4,2668.4,0.08533098]
[1646881710066,0.0235,2669.4,2668.6,0.00786561]
[1646881710267,0.0235,2669.4,2668.6,0.07710453]
[1646881710466,0.0235,2669.4,2668.6,0.00786561]
[1646881710670,1.3751,2670.1,2668.7,1.55294073]
[1646881710671,0.021001,2669.6,2668.7,1.55294073]
[1646881710871,0.021001,2669.6,2668.8,0.08978349]
[1646881711070,0.021001,2669.6,2668.4,1.49223251]
[1646881711071,0.89405127,2669.6,2668.4,1.49223251]
[1646881711271,0.89405127,2669.6,2668.5,5.05296559]
[1646881711470,0.89405127,2669.6,2668.6,1.55296559]
[1646881711671,0.89405127,2669.6,2668.7,0.07054459]
[1646881711970,0.021001,2669.6,2668.9,0.08317221]
[1646881712176,3.81203,2670.2,2668.9,0.08317221]
[1646881712177,0.01299999,2670.7,2669.6,3.7]
[1646881712375,7.32,2671.1,2669.8,0.07172886]
[1646881712577,2.8382963,2671.6,2669.8,0.51672886]
[1646881712770,0.55979328,2671.9,2669.8,0.51672886]
[1646881712771,1.87345,2671.5,2670.0,0.01287419]
[1646881713037,1.10671294,2671.2,2670.1,2.01800369]
[1646881713221,1.1659853,2670.7,2670.2,16.95454421]
[1646881713421,1.1659853,2670.7,2670.1,0.45066735]
[1646881713422,1.1659853,2670.7,2670.3,0.08799309]
[1646881713621,1.1659853,2670.7,2670.1,0.00566735]
[1646881713822,1.1659853,2670.7,2669.5,0.10673509]
[1646881714022,1.1659853,2670.7,2669.6,1.55250683]
[1646881714023,0.04289204,2670.5,2669.6,1.55250683]
[1646881714221,0.97444649,2669.7,2669.3,0.07705745]
[1646881714422,0.97444649,2669.7,2669.4,1.55263716]
[1646881714625,0.97444649,2669.7,2669.3,0.07705745]
[1646881714826,0.97444649,2669.7,2668.4,3.5]
[1646881715023,0.97444649,2669.7,2668.5,0.08972978]
[1646881715225,0.97444649,2669.7,2668.6,1.55288048]
[1646881715421,0.97444649,2669.7,2668.7,1.55288048]
[1646881715627,0.0490952,2670.1,2668.7,1.55288048]
[1646881715628,1.05526127,2669.2,2668.8,0.07651802]
[1646881715828,0.4241952,2670.1,2668.8,3.5]
[1646881715829,0.4940952,2670.1,2668.8,3.5]
[1646881716031,2.93642323,2670.7,2668.9,1.92798048]
[1646881716032,0.05048762,2670.6,2668.9,1.92798048]
[1646881716229,0.05048762,2670.6,2669.0,5.42798048]
[1646881716528,0.05048762,2670.6,2669.2,0.07411479]
[1646881716769,1.08805722,2669.8,2669.3,1.63693829]
[1646881716974,2.87397,2670.8,2669.4,16.96082077]
[1646881717170,2.87397,2670.8,2669.6,0.3751]
[1646881717171,1.87397,2670.8,2669.6,0.3751]
[1646881717376,1.87397,2670.8,2669.7,5.05288048]
[1646881717575,1.87397,2670.8,2669.9,0.06904322]
[1646881717975,1.22145154,2670.4,2669.9,0.06904322]
[1646881718175,1.22145154,2670.4,2670.1,0.08013794]
[1646881718574,1.87371,2671.2,2670.1,0.08013794]
[1646881718976,1.87371,2671.2,2670.3,0.07321931]
[1646881719373,1.87371,2671.2,2670.1,0.08721875]
[1646881719374,0.93685,2671.0,2670.1,0.08721875]
[1646881720175,1.17867089,2670.4,2670.1,0.08721875]
[1646881720377,1.06781986,2670.9,2670.7,0.47720391]
[1646881722018,3.7,2670.8,2670.1,0.08691185]
[1646881722220,0.93727,2670.5,2669.4,0.09034418]
[1646881722417,0.0493227,2670.4,2669.5,1.55263799]
[1646881722816,0.04929458,2670.7,2669.5,1.55263799]
[1646881723016,1.87444,2670.3,2669.5,1.55263799]
[1646881723219,1.0,2670.8,2669.6,3.57795339]
[1646881723420,1.0,2670.8,2669.7,1.55263799]
[1646881723720,0.05265826,2671.0,2669.8,0.07663955]
[1646881723919,0.05265826,2671.0,2670.0,0.09000166]
[1646881724268,1.1951374,2670.3,2669.7,0.07602521]
[1646881724469,1.1951374,2670.3,2669.5,0.3]
[1646881724470,1.1951374,2670.3,2669.9,0.08787704]
[1646881724667,1.1951374,2670.3,2669.6,3.5]
[1646881724868,1.1951374,2670.3,2669.8,0.07475996]
[1646881725068,1.1951374,2670.3,2670.0,0.08415318]
[1646881725471,1.1951374,2670.3,2669.7,0.08842411]
[1646881725672,1.1951374,2670.3,2669.8,1.55256293]
[1646881725972,1.1951374,2670.3,2669.9,0.08537434]
[1646881726172,1.1951374,2670.3,2669.5,2.5489978]
[1646881726372,1.1951374,2670.3,2669.6,5.13506119]
[1646881726573,1.1951374,2670.3,2669.7,1.55254738]
[1646881726772,1.1951374,2670.3,2669.8,0.08485586]
[1646881726973,1.1951374,2670.3,2669.9,1.55254738]
[1646881727174,1.1951374,2670.3,2670.0,0.0861976]
[1646881727575,1.1951374,2670.3,2669.7,0.07420725]
[1646881728023,1.1951374,2670.3,2669.8,1.55249791]
[1646881728214,1.1951374,2670.3,2669.9,0.08293175]
[1646881728415,1.1951374,2670.3,2670.0,1.55249791]
[1646881728614,1.1951374,2670.3,2670.1,0.082732]
[1646881729115,1.1951374,2670.3,2669.9,0.08809132]
[1646881729715,1.1951374,2670.3,2669.6,0.3]
[1646881730014,1.1951374,2670.3,2669.8,0.074066]
[1646881730418,1.1951374,2670.3,2669.9,1.55249521]
[1646881730618,1.1951374,2670.3,2670.0,0.07903951]
[1646881730818,1.1951374,2670.3,2669.7,0.07976712]
[1646881731018,1.1951374,2670.3,2669.8,1.55247027]
[1646881731218,1.1951374,2670.3,2669.9,0.07636928]
[1646881731420,2.1322174,2670.3,2669.6,0.07989045]
[1646881731763,2.1322174,2670.3,2669.8,0.08319018]
[1646881731968,2.1322174,2670.3,2669.6,0.08415435]
[1646881732165,2.1322174,2670.3,2669.5,5.6738978]
[1646881732166,2.1322174,2670.3,2669.5,0.3]
[1646881732365,2.1322174,2670.3,2669.7,0.08702798]
[1646881732565,2.1322174,2670.3,2669.2,4.80204137]
[1646881732765,2.1322174,2670.3,2669.4,0.08689169]
[1646881732969,2.1322174,2670.3,2669.5,1.5527954]
[1646881732970,0.9565976,2669.8,2669.5,1.5527954]
[1646881733164,0.9565976,2669.8,2669.5,1.8527954]
[1646881733368,0.9565976,2669.8,2669.5,0.3]
[1646881733568,0.9565976,2669.8,2669.4,0.38689169]
[1646881733769,0.9565976,2669.8,2669.5,1.85277254]
[1646881733970,0.9565976,2669.8,2669.5,0.3]
[1646881734170,0.9565976,2669.8,2669.4,0.38689169]
[1646881734371,0.9565976,2669.8,2669.5,1.85276854]
[1646881734570,0.9565976,2669.8,2669.3,3.5]
[1646881734772,0.9565976,2669.8,2669.4,1.63250185]
[1646881735076,0.9565976,2669.8,2669.5,0.08582199]
[1646881735824,1.0,2670.5,2669.7,0.9369617]
[1646881736019,1.0,2670.5,2669.8,0.07424511]
[1646881736220,0.04915221,2670.6,2669.8,0.07424511]
[1646881736823,0.931295,2669.9,2669.8,0.07424511]
[1646881738321,0.931295,2669.9,2669.4,1.8739502]
[1646881738524,0.931295,2669.9,2669.5,1.55262569]
[1646881738722,0.931295,2669.9,2669.6,0.06983952]
[1646881740365,1.04274274,2670.3,2669.9,0.80058642]
[1646881745321,0.93694,2670.7,2670.0,0.07226032]
[1646881745521,0.93694,2670.7,2670.0,3.57226032]
[1646881745720,0.93694,2670.7,2670.0,0.07226032]
[1646881745927,0.93694,2670.7,2670.1,1.55245909]
[1646881746121,0.93694,2670.7,2670.2,0.08675576]
[1646881746321,1.87386,2671.0,2670.2,3.58675576]